bitfinex/quotes_ETHUSD_20241212
["timestamp","ask_amount","ask_price","bid_price","bid_amount"]
[1734012824970,6.2,3949.1,3948.7,2.39679341]
[1734012825144,7.988398,3949.1,3948.7,5.39679341]
[1734012825471,7.988398,3949.1,3948.4,3.0]
[1734012825472,0.82322741,3949.0,3948.5,3.0]
[1734012825671,0.8052,3949.0,3948.5,3.0]
[1734012826233,0.8052,3949.0,3948.5,2.53259]
[1734012826431,0.8052,3949.0,3948.7,3.0]
[1734012826627,0.8052,3949.0,3948.7,5.53246]
[1734012826856,0.8052,3949.0,3948.7,5.39679341]
[1734012827272,0.8052,3949.0,3948.8,2.5324]
[1734012827573,0.8052,3949.0,3948.9,2.53235]
[1734012828081,2.3552,3949.0,3948.9,2.53235]
[1734012828627,2.3552,3949.0,3948.7,4.92925341]
[1734012828834,0.01802741,3948.9,3948.5,3.0]
[1734012829057,3.03427312,3949.0,3948.5,2.53259]
[1734012829273,3.03427312,3949.0,3948.6,3.0]
[1734012829664,3.03427312,3949.0,3948.3,2.39679341]
[1734012829880,3.03427312,3949.0,3948.5,3.0]
[1734012830037,2.3552,3949.0,3948.7,2.53247]
[1734012830989,2.3552,3949.0,3948.3,4.92950341]
[1734012831197,2.3552,3949.0,3948.4,2.53263]
[1734012831493,3.9052,3949.0,3948.5,3.0]
[1734012832296,3.9052,3949.0,3948.6,3.0]
[1734012832450,5.254118,3949.0,3948.3,4.92950341]
[1734012832652,5.254118,3949.0,3948.4,3.0]
[1734012833191,5.254118,3949.0,3948.5,2.53259]
[1734012833492,5.254118,3949.0,3948.7,2.53246]
[1734012833790,3.9052,3949.0,3948.7,2.39679341]
[1734012834103,3.9052,3949.0,3948.8,2.53239]
[1734012834890,5.4552,3949.0,3948.8,2.53239]
[1734012835083,4.65,3949.0,3948.9,5.53235]
[1734012836594,4.65,3949.0,3948.7,2.39679341]
[1734012836595,4.65,3949.0,3948.8,3.0]
[1734012837277,0.7785,3948.9,3947.4,0.7892]
[1734012837482,5.52788608,3949.0,3946.8,0.7998]
[1734012837483,0.7548,3948.3,3946.8,0.7998]
[1734012837656,0.7548,3948.0,3946.5,1.30599264]
[1734012838027,0.7548,3947.8,3946.8,2.39679341]
[1734012838168,0.7548,3947.5,3946.4,2.39679341]
[1734012838530,0.7548,3947.3,3946.4,2.39679341]
[1734012839213,0.7548,3947.3,3946.6,2.53381]
[1734012839363,0.01802741,3947.2,3946.4,2.39679341]
[1734012839698,0.7548,3947.3,3946.4,2.39679341]
[1734012839962,0.7548,3947.3,3946.6,2.53379]
[1734012840570,0.7548,3947.3,3946.4,2.39679341]
[1734012840571,0.7548,3947.3,3946.4,4.93072341]
[1734012840773,0.01802741,3947.2,3946.4,2.39679341]
[1734012841086,0.7548,3947.3,3946.4,2.39679341]
[1734012841314,0.7657,3947.1,3946.0,2.39679341]
[1734012841833,2.3157,3947.1,3946.2,2.53407]
[1734012842116,2.3157,3947.1,3946.4,2.5339]
[1734012842318,2.3157,3947.1,3946.4,2.53389]
[1734012842912,2.3157,3947.1,3946.1,3.0]
[1734012843220,2.3157,3947.1,3946.5,2.53383]
[1734012843425,1.55,3947.1,3947.0,2.53356]
[1734012843746,1.55,3947.1,3947.0,5.53356]
[1734012844799,1.55,3947.1,3947.0,3.0]
[1734012845004,1.55,3947.1,3946.7,2.53375]
[1734012845200,3.1,3947.1,3946.8,3.0]
[1734012845428,3.1,3947.1,3946.5,3.0]
[1734012845635,3.1,3947.1,3946.4,2.39679341]
[1734012845945,3.1,3947.1,3947.0,2.53356]
[1734012846800,3.044,3947.1,3946.8,2.39679341]
[1734012847003,3.044,3947.1,3946.3,3.0]
[1734012847004,3.044,3947.1,3946.6,3.0]
[1734012847202,3.044,3947.1,3946.9,2.53357]
[1734012847397,3.044,3947.1,3947.0,2.53356]
[1734012847633,3.044,3947.1,3947.0,5.53356]
[1734012848035,3.044,3947.1,3946.9,3.0]
[1734012848297,3.044,3947.1,3946.7,3.0]
[1734012848502,4.594,3947.1,3946.7,2.53375]
[1734012848716,0.8223,3947.0,3946.5,3.0]
[1734012849100,0.8223,3947.0,3946.6,3.0]
[1734012849343,0.8223,3947.0,3946.2,2.53404]
[1734012849911,0.8223,3947.0,3946.0,2.39679341]
[1734012850109,0.8223,3947.0,3946.5,2.53386]
[1734012850399,1.36393,3947.0,3946.5,2.53386]
[1734012851356,0.8223,3947.0,3946.4,2.53391]
[1734012851672,0.8223,3947.0,3945.7,3.0]
[1734012851816,2.3723,3947.0,3946.5,2.53388]
[1734012852015,2.3723,3947.0,3946.2,2.53405]
[1734012852332,0.826,3946.9,3946.1,3.0]
[1734012852652,0.826,3946.7,3945.9,3.0]
[1734012852814,0.826,3946.7,3945.9,2.53427]
[1734012853014,0.826,3946.7,3944.8,0.12968054]
[1734012853213,3.36027,3946.0,3944.5,2.53517]
[1734012853410,0.7545,3945.8,3944.4,2.5352]
[1734012853661,0.7545,3945.6,3944.2,2.39679341]
[1734012853815,0.7545,3945.4,3944.5,2.53514]
[1734012854024,0.7545,3945.4,3943.8,0.8099]
[1734012854025,0.7545,3945.2,3944.3,2.53529]
[1734012854369,0.01802741,3945.1,3944.3,2.53529]
[1734012854569,2.53499,3944.8,3943.4,2.53584]
[1734012854868,0.7545,3944.6,3943.4,2.53583]
[1734012855171,0.7545,3944.4,3943.4,2.53583]
[1734012855313,0.7545,3944.2,3942.8,2.39679341]
[1734012855518,0.7545,3944.0,3943.0,2.53608]
[1734012856022,0.7545,3944.0,3942.9,2.5362]
[1734012856449,0.7545,3944.0,3943.5,2.5358]
[1734012856942,0.7545,3944.0,3942.9,3.0]
[1734012856943,0.7545,3944.0,3943.2,2.39679341]
[1734012857118,0.7545,3944.0,3943.9,2.53556]
[1734012857537,0.7545,3944.0,3943.6,2.53569]
[1734012857822,0.7545,3944.0,3943.4,3.0]
[1734012857823,0.7545,3944.0,3943.5,3.0]
[1734012858222,0.7545,3944.0,3943.7,2.53568]
[1734012858536,2.3045,3944.0,3943.6,2.39679341]
[1734012858777,1.55,3944.0,3943.6,2.39679341]
[1734012859902,1.55,3944.0,3943.9,5.53556]
[1734012861180,1.55,3944.0,3943.6,4.93253341]
[1734012861181,0.8076,3944.9,3944.8,2.53498]
[1734012861489,1.55,3945.1,3944.4,2.39679341]
[1734012861668,1.55,3945.1,3945.0,5.53485]
[1734012861856,3.1,3945.1,3945.0,5.53485]
[1734012865289,4.65,3945.1,3945.0,5.53485]
[1734012868440,6.2,3945.1,3945.0,5.53485]
[1734012871989,7.75,3945.1,3945.0,5.53485]
[1734012875302,2.42345001,3945.1,3945.0,6.34745]
[1734012876696,0.7732,3946.5,3945.0,0.94116234]
[1734012876896,0.7732,3946.5,3946.0,2.39679341]
[1734012877096,1.55,3947.0,3946.4,2.53395]
[1734012877097,0.7783,3946.9,3946.4,2.53395]
[1734012877603,0.7783,3946.9,3946.8,2.53369]
[1734012877907,0.7783,3946.9,3946.4,2.39679341]
[1734012878206,1.47053,3946.9,3946.4,5.39679341]
[1734012878392,1.47053,3946.9,3946.5,3.0]
[1734012878591,1.47053,3946.9,3946.4,2.39679341]
[1734012878592,1.55,3946.9,3946.4,2.39679341]
[1734012878770,1.55,3946.9,3946.8,4.93048341]
[1734012880026,1.55,3946.9,3946.8,7.93048341]
[1734012881919,3.1,3946.9,3946.8,7.93048341]
[1734012883712,3.1,3946.9,3946.8,2.39679341]
[1734012884011,3.1,3946.9,3946.2,3.0]
[1734012884012,0.7576,3946.8,3946.5,3.0]
[1734012884170,3.1,3946.9,3946.4,2.39679341]
[1734012884368,3.1,3946.9,3946.1,3.0]
[1734012884369,3.1,3946.9,3946.8,7.93048341]
[1734012884997,3.1,3946.9,3945.9,2.39679341]
[1734012885213,4.65,3946.9,3946.1,2.53414]
[1734012885431,1.15516,3946.8,3946.1,2.53414]
[1734012886523,1.15516,3946.8,3946.3,2.53399]
[1734012886722,4.65,3946.9,3946.0,5.53415]
[1734012886930,4.65,3946.9,3945.9,2.39679341]
[1734012886931,4.65,3946.9,3946.2,3.0]
[1734012887218,4.65,3946.9,3946.2,2.53402]
[1734012887430,4.65,3946.9,3946.5,2.53387]
[1734012887718,4.65,3946.9,3946.5,3.0]
[1734012887919,4.65,3946.9,3946.5,2.53388]
[1734012888289,4.65,3946.9,3946.3,2.39679341]
[1734012888502,6.2,3946.9,3946.6,2.5338]
[1734012889029,6.2,3946.9,3946.8,2.53369]
[1734012889196,6.2,3946.9,3946.8,5.53369]
[1734012891818,7.75,3946.9,3946.8,5.53369]
[1734012894074,7.75,3946.9,3945.8,0.4990126]
[1734012894362,1.40742741,3946.8,3946.4,2.53395]
[1734012894522,1.40742741,3946.8,3946.2,2.53406]
[1734012894724,1.40742741,3946.8,3946.2,2.53402]
[1734012894923,1.3894,3946.8,3945.9,2.53424]
[1734012895120,1.3894,3946.8,3945.4,0.51688692]
[1734012895121,1.1441,3946.7,3946.1,2.5341]
[1734012895916,1.1441,3946.7,3945.4,1.31468692]
[1734012896154,1.1441,3946.7,3945.5,3.0]
[1734012896377,1.1441,3946.7,3945.9,2.53421]
[1734012896717,0.7781,3946.5,3946.0,3.0]
[1734012898239,0.19222,3946.4,3945.4,0.7978]
[1734012898559,0.19222,3946.4,3945.4,2.53457]
[1734012898708,0.19222,3946.4,3944.9,3.0]
[1734012898709,0.01802741,3946.3,3945.2,2.53471]
[1734012898903,0.7501,3946.2,3944.7,0.7928]
[1734012899157,2.55206741,3946.3,3944.7,0.7928]
[1734012899158,0.7501,3946.0,3944.7,0.7928]
[1734012899338,0.7501,3946.0,3945.0,2.53482]
[1734012899542,0.01802741,3945.9,3945.0,2.53482]
[1734012899854,0.7501,3946.0,3944.9,2.53487]
[1734012900006,0.7501,3946.0,3944.7,0.7928]
[1734012900007,0.7501,3946.0,3945.5,2.5345]
[1734012901063,0.7501,3946.0,3944.9,2.53491]
[1734012901243,0.7501,3946.0,3945.0,3.0]
[1734012901614,0.7501,3946.0,3944.9,2.53491]
[1734012901615,0.7501,3946.0,3945.4,2.53458]
[1734012901815,2.3001,3946.0,3945.4,2.53458]
[1734012902523,2.3001,3946.0,3945.5,2.53452]
[1734012903126,1.55,3946.0,3945.9,2.53427]
[1734012903330,1.55,3946.0,3945.9,5.53427]
[1734012904540,1.55,3946.0,3945.9,8.74566341]
[1734012904738,1e-05,3946.0,3945.9,11.29566341]
[1734012904941,1.55,3946.5,3945.9,11.29566341]
[1734012904942,1.55,3946.5,3946.4,2.53395]
[1734012905186,1.55,3946.5,3946.4,7.93074341]
[1734012906666,1.55,3946.8,3946.4,9.26524341]
[1734012906867,1.55,3946.8,3946.7,2.53376]
[1734012907255,1.55,3946.8,3946.7,5.53376]
[1734012908198,5.24e-06,3946.8,3946.7,8.48055341]
[1734012908566,1.55000524,3946.8,3946.7,7.93055341]
[1734012909411,1.55000524,3946.8,3946.7,8.73195341]
[1734012909594,1.55000524,3946.8,3946.7,9.28195341]
[1734012909961,1.55000524,3946.8,3946.7,8.73195341]
[1734012910201,1.55000524,3946.8,3946.7,7.93055341]
[1734012911709,1.55000524,3946.8,3946.7,8.48055341]
[1734012911866,3.10000524,3946.8,3946.7,8.48055341]
[1734012912421,3.10000524,3946.8,3946.7,49.05385141]
[1734012912720,3.10000524,3946.8,3946.7,46.46868039]
[1734012912913,3.10000524,3946.8,3946.7,45.58968039]
[1734012913211,1.67207525,3946.9,3946.8,6.83689]
[1734012913512,1.67207525,3946.9,3946.8,57.33689]
[1734012913677,3.32725525,3947.1,3946.9,3.55]
[1734012913879,3.32725525,3947.1,3947.0,27.734947]
[1734012914123,3.32725525,3947.1,3947.0,30.268507]
[1734012914407,2.91735525,3947.1,3947.0,28.685107]
[1734012914610,2.91735525,3947.1,3947.0,6.88336]
[1734012914826,2.91735525,3947.1,3947.0,29.192107]
[1734012914982,2.91735525,3947.1,3947.0,7.03832769]
[1734012915182,4.46735525,3947.1,3947.0,6.88336]
[1734012915387,4.46735525,3947.1,3947.0,5.53356]
[1734012915974,4.46735525,3947.1,3947.0,6.08356]
[1734012916396,4.46735525,3947.1,3947.0,5.53356]
[1734012916919,4.46735525,3947.1,3947.0,6.08356]
[1734012917776,4.46735525,3947.1,3947.0,5.53356]
[1734012918122,4.46735525,3947.1,3946.4,0.8191]
[1734012918123,4.46735525,3947.1,3946.3,2.53397]
[1734012918283,4.48538266,3947.1,3946.6,2.53381]
[1734012918625,6.01735525,3947.1,3946.6,2.53381]
[1734012919030,6.01735525,3947.1,3946.2,0.49984812]
[1734012919031,6.01735525,3947.1,3946.7,2.53375]
[1734012919432,6.01735525,3947.1,3946.6,3.0]
[1734012919762,0.01802741,3947.0,3946.5,3.0]
[1734012919942,0.7632,3946.9,3946.2,2.53407]
[1734012920153,6.70091078,3947.1,3945.8,2.53433]
[1734012920154,0.01802741,3946.8,3945.8,2.53433]
[1734012920451,0.7632,3946.7,3945.9,2.53427]
[1734012920616,0.7632,3946.7,3945.5,0.12364583]
[1734012921022,0.01802741,3946.6,3945.7,2.53439]
[1734012921243,0.7854,3946.5,3945.5,2.65811583]
[1734012921407,0.01802741,3946.4,3945.5,2.53447]
[1734012921720,0.826,3946.3,3945.3,2.53465]
[1734012921921,0.01802741,3946.2,3945.3,2.53465]
[1734012922142,0.01802741,3946.2,3945.2,1.47434704]
[1734012922143,0.01802741,3946.2,3945.4,2.53458]
[1734012922310,0.826,3946.3,3945.3,0.8209]
[1734012922662,0.826,3946.3,3945.9,2.53425]
[1734012922861,0.826,3946.3,3946.0,5.5342]
[1734012923026,0.826,3946.3,3946.2,2.53408]
[1734012923365,1.55,3946.4,3946.3,5.53401]
[1734012924355,1.55,3946.4,3946.3,6.08401]
[1734012924557,6.01735525,3947.1,3947.0,5.53356]
[1734012924910,6.01735525,3947.1,3947.0,14.697241]
[1734012925152,4.75060525,3947.1,3947.0,14.697241]
[1734012925460,6.30060525,3947.1,3947.0,14.697241]
[1734012925654,6.30060525,3947.1,3947.0,17.247241]
[1734012925655,5.25e-06,3947.1,3947.0,17.247241]
[1734012925827,1.55,3948.0,3947.9,2.53299]
[1734012926227,1.55,3948.0,3947.9,5.53299]
[1734012928563,1.55,3948.0,3947.4,3.0]
[1734012928741,3.1,3948.0,3947.9,3.0]
[1734012928910,3.1,3948.0,3947.8,3.0]
[1734012929110,3.1,3948.0,3947.9,3.0]
[1734012929739,3.1,3948.0,3947.0,1.3827]
[1734012929740,4.2087,3948.0,3947.5,2.53324]
[1734012929923,4.2087,3948.0,3947.6,3.0]
[1734012930122,3.8987,3948.0,3947.1,5.5335]
[1734012930325,3.8987,3948.0,3947.3,2.53334]
[1734012930524,3.8987,3948.0,3947.0,2.9535753]
[1734012930758,3.8987,3948.0,3947.0,5.4871353]
[1734012930924,3.8987,3948.0,3947.0,2.9535753]
[1734012931127,3.1,3948.0,3947.9,2.53299]
[1734012931853,3.1,3948.0,3947.9,5.53299]
[1734012932037,4.65,3948.0,3947.9,5.53299]
[1734012935454,6.2,3948.0,3947.9,5.53299]
[1734012938957,7.75,3948.0,3947.9,5.53299]
[1734012941262,8.5271,3948.0,3947.9,5.53299]
[1734012941574,9.37981,3948.0,3947.5,3.0]
[1734012941773,9.37981,3948.0,3947.2,2.53342]
[1734012942374,10.92981,3948.0,3947.2,2.53342]
[1734012942758,0.01802741,3947.9,3946.9,2.53363]
[1734012942958,0.8018,3947.8,3946.8,2.53367]
[1734012943130,1.34875,3947.7,3946.5,2.9535753]
[1734012943335,0.81982741,3947.6,3946.6,2.53381]
[1734012943980,0.81982741,3947.6,3946.7,2.53375]
[1734012944149,2.53332,3947.4,3946.3,2.53397]
[1734012944479,2.53332,3947.4,3946.1,2.9535753]
[1734012944480,0.7677,3947.2,3946.1,2.53413]
[1734012944697,0.7677,3947.0,3945.8,2.53429]
[1734012944987,0.7677,3946.8,3945.9,2.53424]
[1734012945190,0.7677,3946.8,3946.2,2.53407]
[1734012945392,0.7677,3946.8,3946.3,2.534]
[1734012945531,2.3177,3946.8,3946.1,2.53414]
[1734012945737,2.3177,3946.8,3946.2,3.0]
[1734012946988,2.3177,3946.8,3946.0,2.53414]
[1734012947296,2.3177,3946.8,3946.2,2.53406]
[1734012947575,0.01802741,3946.7,3946.0,2.53419]
[1734012947780,2.54947,3946.8,3946.1,3.0]
[1734012947943,2.54947,3946.8,3946.2,2.53407]
[1734012948156,2.3177,3946.8,3945.8,2.53428]
[1734012948338,0.8073,3946.6,3945.9,3.0]
[1734012948539,0.8073,3946.6,3945.3,3.0]
[1734012948779,1.55,3946.8,3944.9,0.12593488]
[1734012948780,0.8073,3946.4,3944.9,0.12593488]
[1734012948936,0.8073,3946.3,3944.8,2.40234333]
[1734012949263,0.8073,3946.3,3945.4,2.53456]
[1734012949462,1.04483274,3946.3,3944.9,2.53491]
[1734012949651,0.776,3946.1,3944.5,2.53517]
[1734012949976,0.7533,3945.9,3945.0,2.53485]
[1734012950433,0.7533,3945.9,3945.1,2.53474]
[1734012950774,0.7533,3945.9,3944.8,2.40234333]
[1734012950943,0.7533,3945.9,3945.0,3.0]
[1734012951146,0.7533,3945.9,3945.5,2.53452]
[1734012951360,0.01802741,3945.8,3945.2,3.0]
[1734012951562,0.01802741,3945.8,3945.3,3.0]
[1734012951961,0.7533,3945.9,3945.3,2.53465]
[1734012952366,2.3033,3945.9,3945.3,2.53465]
[1734012953242,2.3033,3945.9,3945.1,3.0]
[1734012953561,0.7881,3945.8,3945.0,2.53484]
[1734012953753,0.7881,3945.8,3945.1,5.53477]
[1734012954575,0.7881,3945.6,3944.6,3.0]
[1734012954780,0.01802741,3945.5,3944.7,3.0]
[1734012954965,0.7881,3945.4,3944.7,3.0]
[1734012955477,0.7881,3945.4,3944.6,2.53511]
[1734012955478,0.7881,3945.2,3944.1,0.61918558]
[1734012955661,0.7881,3945.2,3944.6,2.5351]
[1734012956168,0.7881,3945.2,3944.1,0.61918558]
[1734012956341,0.7881,3945.2,3944.9,2.53489]
[1734012956768,0.01802741,3945.1,3944.4,3.0]
[1734012957018,0.01802741,3945.1,3944.5,2.53517]
[1734012957325,0.7881,3945.2,3944.6,3.0]
[1734012957676,0.01802741,3945.1,3944.4,3.0]
[1734012957873,0.7917,3945.0,3944.4,3.0]
[1734012958098,0.7917,3945.0,3944.0,2.53549]
[1734012958321,0.7917,3945.0,3943.8,2.53561]
[1734012958828,0.7568,3944.6,3943.5,2.53576]
[1734012959145,0.77482741,3944.5,3943.4,3.04048725]
[1734012959422,0.7568,3944.3,3943.4,2.53587]
[1734012959584,0.33099474,3944.4,3942.5,2.53646]
[1734012959585,0.7568,3943.9,3942.5,2.53646]
[1734012959787,0.7568,3943.7,3942.4,2.95799994]
[1734012960208,0.7568,3943.7,3943.3,2.53591]
[1734012961034,0.7568,3943.7,3943.2,3.0]
[1734012961322,0.7568,3943.7,3942.8,2.53621]
[1734012961323,0.7568,3943.7,3942.7,0.51850068]
[1734012961525,2.95799994,3944.8,3942.7,2.53632]
[1734012961526,0.7586,3943.5,3942.7,2.53632]
[1734012961681,0.01802741,3943.4,3942.7,2.53632]
[1734012962331,0.01802741,3943.4,3941.6,2.95799994]
[1734012962332,0.7586,3943.3,3941.6,2.95799994]
[1734012962494,0.77662741,3943.2,3941.6,5.49500994]
[1734012962816,0.7586,3943.2,3942.3,2.53658]
[1734012963000,1.24484574,3943.2,3942.3,2.53658]
[1734012963375,0.7586,3943.1,3941.9,2.53684]
[1734012963606,0.7586,3943.1,3941.8,3.04107122]
[1734012963830,0.01802741,3943.0,3942.2,3.0]
[1734012963982,0.01802741,3943.0,3941.8,0.50416122]
[1734012963983,0.8069,3942.9,3941.8,2.53685]
[1734012964327,0.8069,3942.7,3941.8,2.53685]
[1734012964480,0.7603,3942.5,3941.0,1.4758622]
[1734012964676,0.7603,3942.3,3941.3,2.53718]
[1734012964927,0.7603,3942.1,3941.1,2.53735]
[1734012965220,0.7603,3941.9,3941.0,4.0132622]
[1734012965574,0.7603,3941.9,3941.0,1.4758622]
[1734012965774,0.7603,3941.9,3941.4,2.53711]
[1734012966005,1.55,3942.1,3941.1,2.95799994]
[1734012966205,1.55,3942.1,3942.0,2.53678]
[1734012966721,1.55,3942.1,3942.0,5.53678]
[1734012966926,1.55,3942.1,3941.8,2.5369]
[1734012967220,1.55,3942.1,3941.5,3.0]
[1734012967221,0.01802741,3942.0,3941.5,3.0]
[1734012967378,0.01802741,3942.0,3941.2,0.50514342]
[1734012967379,1.55,3942.1,3941.7,2.53696]
[1734012967577,1.55,3942.1,3941.4,2.53712]
[1734012967778,1.55,3942.1,3941.2,0.50514342]
[1734012968090,1.55,3942.1,3942.0,2.53678]
[1734012968294,1.55,3942.1,3942.0,5.53678]
[1734012969006,3.1,3942.1,3942.0,5.53678]
[1734012970221,3.1,3942.1,3942.0,8.49477994]
[1734012970538,1.55,3943.4,3942.3,0.8112]
[1734012970742,1.55,3943.4,3943.3,2.53594]
[1734012971529,1.55,3943.4,3942.9,3.0]
[1734012971677,1.55,3943.4,3942.4,3.0]
[1734012971678,0.7713,3943.2,3942.4,3.0]
[1734012971885,0.7713,3943.2,3942.3,0.50905329]
[1734012972087,0.7713,3943.2,3942.6,3.0]
[1734012972284,2.3213,3943.2,3942.2,2.53659]
[1734012972485,0.01802741,3943.1,3942.0,2.53673]
[1734012972695,2.53634,3942.7,3941.0,3.20911343]
[1734012972896,0.802,3942.5,3940.6,3.20911343]
[1734012973095,0.784,3942.3,3940.6,3.70980164]
[1734012973300,0.80202741,3942.2,3940.6,3.70980164]
[1734012973725,0.784,3942.2,3941.7,2.53692]
[1734012973924,0.784,3942.2,3941.8,2.53688]
[1734012974224,0.784,3942.2,3941.3,2.53717]
[1734012974533,0.784,3942.2,3941.0,5.40591343]
[1734012974688,2.53646,3942.5,3940.4,2.53779]
[1734012974689,0.8315,3941.9,3940.4,2.53779]
[1734012974883,0.8315,3941.7,3940.3,2.53787]
[1734012975130,0.01802741,3941.6,3940.6,2.40591343]
[1734012975329,0.66344257,3941.5,3940.6,2.40591343]
[1734012975499,0.01802741,3941.4,3940.6,2.40591343]
[1734012975912,0.66344257,3941.5,3940.6,2.40591343]
[1734012976224,0.66344257,3941.5,3941.0,4.94333343]
[1734012976779,0.66344257,3941.5,3940.4,2.53776]
[1734012976780,0.66344257,3941.5,3941.4,4.94307343]
[1734012977132,1.55,3941.6,3941.5,5.5371]
[1734012977518,0.01802741,3943.0,3941.6,5.53704]
[1734012977825,1.55,3943.2,3942.7,2.40591343]
[1734012978126,1.86180274,3943.2,3942.7,2.40591343]
[1734012978296,1.55,3943.2,3943.1,2.40591343]
[1734012978497,1.55,3943.2,3943.1,4.94198343]
[1734012978933,3.1,3943.2,3943.1,7.94198343]
[1734012979430,3.1,3943.2,3943.1,8.49685356]
[1734012979990,0.8151,3943.1,3942.7,3.0]
[1734012980489,0.8151,3943.1,3943.0,5.96078356]
[1734012980702,3.887,3943.2,3943.0,5.96078356]
[1734012981241,3.887,3943.2,3942.6,2.96078356]
[1734012981390,3.887,3943.2,3942.7,3.0]
[1734012981826,0.7521,3943.1,3942.7,3.0]
[1734012982196,0.7521,3943.0,3942.1,3.0]
[1734012982536,0.7521,3942.5,3941.4,2.5371]
[1734012982705,0.779,3942.3,3941.4,2.5371]
[1734012982904,0.01802741,3942.4,3941.3,2.96078356]
[1734012982905,0.779,3942.2,3941.3,2.96078356]
[1734012983122,0.779,3942.2,3941.4,2.53715]
[1734012983435,0.779,3942.2,3941.7,2.96078356]
[1734012983639,0.779,3942.2,3942.1,2.96078356]
[1734012983807,0.779,3942.2,3942.1,5.49749356]
[1734012983996,0.8055,3943.0,3942.2,2.53665]
[1734012984194,0.8055,3943.0,3942.1,2.96078356]
[1734012984400,0.8055,3943.0,3942.5,2.96078356]
[1734012985700,2.3555,3943.0,3942.2,3.0]
[1734012986094,2.3555,3943.0,3942.8,2.53626]
[1734012986294,1.55,3943.0,3942.9,2.96078356]
[1734012986728,1.55,3943.0,3942.9,8.49698356]
[1734012987439,1.55,3943.0,3942.9,5.96078356]
[1734012987998,1.55,3943.0,3942.2,2.5366]
[1734012987999,2.17,3943.0,3942.1,0.50028637]
[1734012988225,2.17,3943.0,3942.0,2.96078356]
[1734012988226,0.7962,3942.9,3942.0,2.96078356]
[1734012988545,0.7962,3942.9,3941.6,2.96078356]
[1734012988546,0.7952,3942.4,3941.6,2.96078356]
[1734012988751,0.7952,3942.4,3942.0,2.96078356]
[1734012988954,2.3452,3942.4,3942.0,2.96078356]
[1734012989156,0.23452,3942.3,3942.0,2.96078356]
[1734012990162,3.31429,3942.2,3942.0,2.96078356]
[1734012990500,2.53671,3942.1,3942.0,2.96078356]
[1734012990700,0.7776,3942.2,3942.0,2.96078356]
[1734012992560,0.7776,3942.2,3942.1,5.53671]
[1734012992561,1.55,3942.2,3942.1,5.53671]
[1734012994464,1.55,3942.2,3942.1,3.0]
[1734012994915,1.55,3942.2,3942.1,5.53671]
[1734012995058,1.55,3942.2,3942.1,3.0]
[1734012995979,0.8275,3942.1,3942.0,2.96078356]
[1734012997085,1.55,3942.4,3942.1,5.53671]
[1734012997237,1.55,3943.0,3942.5,3.0]
[1734012997437,1.55,3943.0,3942.9,2.96078356]
[1734012998249,1.55,3943.0,3942.6,3.0]
[1734012998464,2.502196,3943.0,3942.6,3.0]
[1734012998650,5.038346,3943.0,3942.6,3.0]
[1734012998858,2.502196,3943.0,3942.6,3.0]
[1734012999382,4.052196,3943.0,3942.6,3.0]
[1734013000149,3.1,3943.0,3942.6,3.0]
[1734013001337,3.1,3943.0,3942.9,2.96078356]
[1734013002544,7.18613,3943.0,3942.5,3.0]
[1734013002744,0.7874,3942.6,3942.0,2.96078356]
[1734013003368,0.01802741,3942.5,3942.0,2.96078356]
[1734013003568,0.01802741,3942.5,3941.6,2.96078356]
[1734013003569,0.7874,3942.0,3941.6,2.96078356]
[1734013004443,0.01802741,3941.9,3941.6,2.96078356]
[1734013005076,0.7874,3942.0,3941.6,2.96078356]
[1734013005887,2.3374,3942.0,3941.6,2.96078356]
[1734013006246,1.55,3942.0,3941.7,3.0]
[1734013006449,1.55,3942.0,3941.9,5.53684]
[1734013007071,3.1,3943.2,3942.0,3.0]
[1734013007270,3.1,3943.2,3942.9,5.5362]
[1734013008683,3.1,3943.2,3942.9,3.0]
[1734013008985,3.1,3943.2,3942.0,0.7615]
[1734013008986,5.4314,3943.0,3942.6,3.0]
[1734013009284,6.2,3943.0,3942.6,5.96078356]
[1734013009495,6.2,3943.0,3942.7,2.53633]
[1734013009855,6.2,3943.0,3942.8,3.0]
[1734013010061,6.2,3943.0,3942.9,5.5362]
[1734013012456,7.75,3943.0,3942.9,5.5362]
[1734013014249,7.75,3943.0,3942.7,3.0]
[1734013014451,0.01802741,3942.9,3942.7,3.0]
[1734013014692,7.75,3943.0,3942.7,3.0]
[1734013015892,9.3,3943.0,3942.7,3.0]
[1734013016296,9.3,3943.0,3942.7,5.53627]
[1734013016456,9.3,3943.0,3942.7,3.0]
[1734013017283,9.3,3943.0,3942.7,5.53627]
[1734013017485,9.3,3943.0,3942.7,3.0]
[1734013019092,10.85,3943.0,3942.7,3.0]
[1734013019685,10.85,3943.0,3942.9,5.5362]
[1734013020727,10.85,3943.0,3942.7,3.0]
[1734013020880,10.85,3943.0,3942.8,2.53625]
[1734013021084,10.85,3943.0,3942.9,3.0]
[1734013021393,10.85,3943.0,3942.9,5.5362]
[1734013021590,10.85,3943.0,3942.9,3.0]
[1734013021778,10.85,3943.0,3942.7,3.0]
[1734013022305,10.85,3943.0,3942.7,5.5363]
[1734013022520,12.4,3943.0,3942.9,5.5362]
[1734013023381,12.4,3943.0,3942.7,5.53632]
[1734013023589,12.4,3943.0,3942.8,2.5362]
[1734013023887,12.4,3943.0,3942.7,3.0]
[1734013024292,12.4,3943.0,3942.9,3.0]